[Event "53rd Indian Junior Open-ch 2024"]
[Site "Karnal"]
[Date "2024.09.20"]
[Round "7.7"]
[White "Tarun V"]
[Black "Nagarkatte Vedant"]
[Result "0-1"]
[ECO "D36"]
[WhiteElo "1907"]
[BlackElo "2260"]
[Annotator "ChessBase"]
[PlyCount "144"]
[EventDate "2024.09.16"]
[EventType "swiss"]
[EventCountry "IND"]
[SourceTitle "playchess.com"]
[Source "ChessBase"]
[SourceQuality "1"]
[TimeControl "5400+30"]

1. d4 {[%emt 0:05:55]} d5 {[%emt 0:00:04]} 2. Nf3 {[%emt 0:00:07]} Nf6 {[%emt 0:00:03]} 3. c4 {[%emt 0:00:10]} e6 {[%emt 0:00:04]} 4. cxd5 {[%emt 0:00:06]} exd5 {[%emt 0:00:03]} 5. Bg5 {[%emt 0:00:06]} Be7 {[%emt 0:00:16]} 6. Qc2 {[%emt 0:00:22]} c6 {[%emt 0:00:08]} 7. Nc3 {[%emt 0:00:06]} O-O {[%emt 0:01:10]} 8. e3 {[%emt 0:00:05]} h6 {[%emt 0:00:04]} 9. Bh4 {[%emt 0:00:07]} Ne8 {[%emt 0:07:49]} 10. Bg3 {[%emt 0:03:57]} Nd6 {[%emt 0:00:08]} 11. Bd3 {[%emt 0:00:22]} Re8 {[%emt 0:04:58]} 12. O-O {[%emt 0:00:24]} Nd7 {[%emt 0:03:15]} 13. Ne5 {[%emt 0:05:50]} Nf6 {[%emt 0:02:07]} 14. f4 {[%emt 0:02:34]} Bd7 {[%emt 0:04:54]} 15. Rae1 {[%emt 0:02:48]} Rc8 {[%emt 0:03:27]} 16. Bh4 {[%emt 0:07:33]} Nfe4 {[%emt 0:09:57]} 17. Bxe7 {[%emt 0:04:23]} Qxe7 {[%emt 0:01:58]} 18. g4 {[%emt 0:04:08]} f6 {[%emt 0:25:49]} 19. Ng6 {[%emt 0:02:09]} Qf7 {[%emt 0:18:48]} 20. f5 {[%emt 0:00:26]} c5 {[%emt 0:00:58]} 21. Nf4 {[%emt 0:11:09]} cxd4 {[%emt 0:00:27]} 22. exd4 {[%emt 0:00:22]} Nxc3 {[%emt 0:00:47]} 23. bxc3 {[%emt 0:02:54]} Nb5 {[%emt 0:02:17]} 24. Rxe8+ {[%emt 0:02:28]} Qxe8 {[%emt 0:01:25]} 25. Nxd5 {[%emt 0:10:10]} Nxd4 {[%emt 0:00:58]} 26. Qf2 {[%emt 0:03:58]} Nc6 {[%emt 0:03:31]} 27. Bc4 {[%emt 0:03:50]} Kh8 {[%emt 0:00:04]} 28. Bb3 {[%emt 0:01:26]} Qe4 {[%emt 0:01:00]} 29. Qf4 {[%emt 0:02:00]} Qxf4 {[%emt 0:01:20]} 30. Rxf4 {[%emt 0:00:36]} Ne5 {[%emt 0:00:06]} 31. h4 {[%emt 0:01:30]} Rc5 {[%emt 0:03:26]} 32. h5 {[%emt 0:08:07]} Be8 {[%emt 0:02:22]} 33. Kf1 {[%emt 0:06:43]} Bb5+ {[%emt 0:00:34]} 34. Kg1 {[%emt 0:00:31]} Be8 {[%emt 0:00:01]} 35. Kf1 {[%emt 0:01:03]} Bf7 {[%emt 0:02:52]} 36. Ne7 {[%emt 0:01:22]} Bxb3 {[%emt 0:00:14]} 37. axb3 {[%emt 0:00:03]} Rxc3 {[%emt 0:00:42]} 38. Re4 {[%emt 0:03:13]} Rxb3 {[%emt 0:00:32]} 39. Ng6+ {[%emt 0:00:03]} Kg8 {[%emt 0:00:03]} 40. Nxe5 {[%emt 0:00:53]} fxe5 {[%emt 0:00:01]} 41. Rxe5 {[%emt 0:00:01]} Rb4 {[%emt 0:00:31]} 42. Re7 {[%emt 0:01:28]} Rxg4 {[%emt 0:00:14]} 43. Rxb7 {[%emt 0:00:06]} Rf4+ {[%emt 0:00:01]} 44. Kg2 {[%emt 0:00:09]} Rxf5 {[%emt 0:00:02]} 45. Rxa7 {[%emt 0:00:06]} Rxh5 {[%emt 0:00:02]} 46. Rb7 {[%emt 0:00:09]} Kh7 {[%emt 0:00:03]} 47. Rb6 {[%emt 0:00:05]} Rf5 {[%emt 0:00:03]} 48. Ra6 {[%emt 0:00:06]} Rf6 {[%emt 0:00:08]} 49. Ra5 {[%emt 0:00:07]} Kg6 {[%emt 0:00:02]} 50. Kh2 {[%emt 0:00:05]} h5 {[%emt 0:00:06]} 51. Kg2 {[%emt 0:00:04]} Kh6 {[%emt 0:00:03]} 52. Ra8 {[%emt 0:00:13]} Rb6 {[%emt 0:00:04]} 53. Ra5 {[%emt 0:00:06]} g5 {[%emt 0:00:09]} 54. Ra8 {[%emt 0:00:09]} Kg6 {[%emt 0:00:43]} 55. Ra5 {[%emt 0:00:11]} Rb2+ {[%emt 0:00:25]} 56. Kg3 {[%emt 0:00:19]} Rb3+ {[%emt 0:00:14]} 57. Kg2 {[%emt 0:00:05]} g4 {[%emt 0:00:16]} 58. Rc5 {[%emt 0:00:11]} Rf3 {[%emt 0:00:04]} 59. Ra5 {[%emt 0:00:18]} Rf5 {[%emt 0:00:04]} 60. Ra8 {[%emt 0:00:10]} Kg5 {[%emt 0:08:34]} 61. Ra3 {[%emt 0:00:12]} Rb5 {[%emt 0:00:00]} 62. Ra2 {[%emt 0:00:11]} h4 {[%emt 0:00:00]} 63. Ra8 {[%emt 0:00:15]} Rb2+ {[%emt 0:00:00]} 64. Kg1 {[%emt 0:00:10]} g3 {[%emt 0:00:00]} 65. Ra5+ {[%emt 0:00:21]} Kg4 {[%emt 0:00:00]} 66. Ra4+ {[%emt 0:00:05]} Kh3 {[%emt 0:00:00]} 67. Ra1 {[%emt 0:00:04]} Rb4 {[%emt 0:00:00]} 68. Kh1 {[%emt 0:00:34]} Kg4 {[%emt 0:00:00]} 69. Rc1 {[%emt 0:00:19]} Rf4 {[%emt 0:00:00]} 70. Ra1 {[%emt 0:00:09]} h3 {[%emt 0:00:00]} 71. Rb1 {[%emt 0:00:15]} h2 {[%emt 0:00:00]} 72. Ra1 {[%emt 0:00:29]} Kh3 {[%emt 0:00:00]} 0-1

[Event "53rd Indian Junior Open-ch 2024"]
[Site "Karnal"]
[Date "2024.09.20"]
[Round "7.8"]
[White "Jaiveer Mahendru"]
[Black "Arnav Agrawal"]
[Result "1-0"]
[ECO "B90"]
[WhiteElo "2246"]
[BlackElo "1888"]
[Annotator "RC"]
[PlyCount "71"]
[EventDate "2024.09.16"]
[EventType "swiss"]
[EventCountry "IND"]
[SourceTitle "playchess.com"]
[Source "ChessBase"]
[SourceQuality "1"]
[TimeControl "5400+30"]

1. e4 {[%emt 0:03:24]} c5 {[%emt 0:00:09]} 2. Nf3 {[%emt 0:00:05]} d6 {[%emt 0:00:04]} 3. d4 {[%emt 0:00:01]} cxd4 {[%emt 0:00:06]} 4. Nxd4 {[%emt 0:00:01]} Nf6 {[%emt 0:00:08]} 5. Nc3 {[%emt 0:00:20]} a6 {[%emt 0:00:05]} 6. Be3 {[%emt 0:00:05]} e5 {[%emt 0:00:04]} 7. Nf3 {[%emt 0:00:55]} Be7 {[%emt 0:00:10]} 8. Nd2 {[%emt 0:00:03]} b5 {[%emt 0:00:11]} 9. a4 {[%emt 0:00:07]} b4 {[%emt 0:00:05]} 10. Nd5 {[%emt 0:00:02]} Nxd5 {[%emt 0:00:09]} 11. exd5 {[%emt 0:00:03]} Nd7 {[%emt 0:00:26]} 12. a5 {[%emt 0:00:07]} O-O {[%emt 0:00:10]} 13. Nc4 {[%emt 0:00:02]} f5 {[%emt 0:01:18]} 14. Qd2 {[%emt 0:00:03]} Nf6 {[%emt 0:03:39]} 15. O-O-O {[%emt 0:04:58]} Bb7 {[%emt 0:06:12]} 16. Qxb4 {[%emt 0:02:12]} Bxd5 {[%emt 0:06:23]} 17. Nb6 {[%emt 0:00:18]} Bb7 {[%emt 0:00:21]} 18. Nxa8 {[%emt 0:01:11]} Qxa8 {[%emt 0:00:06]} 19. f3 {[%emt 0:18:04]} f4 {[%emt 0:03:33]} 20. Bb6 {[%emt 0:00:25]} Re8 {[%emt 1:17:11]} 21. Qb3+ {[%emt 0:13:58]} Kh8 {[%emt 0:00:00]} 22. Be2 {[%emt 0:05:28]} Rc8 {[%emt 0:00:00]} 23. g3 {[%emt 0:08:40]} Nd5 {[%emt 0:00:00]} 24. Kb1 {[%emt 0:08:55]} Bf6 {[%emt 0:00:00]} 25. Rhf1 {[%emt 0:10:20]} Bd8 {[%emt 0:00:00]} 26. gxf4 {[%emt 0:08:17]} Nxf4 {[%emt 0:00:00]} 27. Bxd8 {[%emt 0:04:01]} Rxd8 {[%emt 0:00:00]} 28. Bc4 {[%emt 0:02:06]} d5 {[%emt 0:00:00]} 29. Qb6 {[%emt 0:00:23]} Re8 {[%emt 0:00:00]} 30. Bb3 {[%emt 0:00:18]} Qb8 {[%emt 0:00:00]} 31. Rg1 {[%emt 0:03:14]} d4 {[%emt 0:00:00]} 32. Rde1 {[%emt 0:01:18]} d3 {[%emt 0:00:00]} 33. cxd3 {[%emt 0:00:45]} Qc8 {[%emt 0:00:00]} 34. Rc1 {[%emt 0:01:01]} Qd7 {[%emt 0:00:00]} 35. Rc7 {[%emt 0:00:13]} Qxd3+ {[%emt 0:00:00]} 36. Bc2 {[%emt 0:00:05]} 1-0

[Event "53rd Indian Junior Open-ch 2024"]
[Site "Karnal"]
[Date "2024.09.20"]
[Round "7.9"]
[White "Arul Prakash N"]
[Black "Aniruddh Chatterjee"]
[Result "1/2-1/2"]
[ECO "A29"]
[WhiteElo "1922"]
[BlackElo "2171"]
[Annotator "RC"]
[PlyCount "113"]
[EventDate "2024.09.16"]
[EventType "swiss"]
[EventCountry "IND"]
[SourceTitle "playchess.com"]
[Source "ChessBase"]
[SourceQuality "1"]
[TimeControl "5400+30"]

1. c4 {[%emt 1:31:00]} e5 {[%emt 1:31:00]} 2. Nc3 {[%emt 0:00:30]} Nf6 {[%emt 0:00:30]} 3. Nf3 {[%emt 0:00:30]} Nc6 {[%emt 0:00:30]} 4. g3 {[%emt 0:00:30]} Bb4 {[%emt 0:00:30]} 5. Nd5 {[%emt 0:00:30]} Bc5 {[%emt 0:00:30]} 6. Bg2 {[%emt 0:00:30]} d6 {[%emt 0:00:30]} 7. O-O {[%emt 0:00:30]} O-O {[%emt 0:00:30]} 8. e3 {[%emt 0:00:30]} Bg4 {[%emt 0:00:30]} 9. h3 {[%emt 0:00:30]} Bf5 {[%emt 0:00:30]} 10. d4 {[%emt 0:00:30]} Bb6 {[%emt 0:00:30]} 11. Nh4 {[%emt 0:00:30]} Bd7 {[%emt 0:00:30]} 12. Nxb6 {[%emt 0:00:30]} axb6 {[%emt 0:00:30]} 13. Nf3 {[%emt 0:00:30]} Re8 {[%emt 0:00:30]} 14. b3 {[%emt 0:00:30]} e4 {[%emt 0:00:30]} 15. Nd2 {[%emt 0:00:30]} Nb4 {[%emt 0:00:30]} 16. a3 {[%emt 0:00:30]} b5 {[%emt 0:00:30]} 17. Rb1 {[%emt 0:00:30]} Nd3 {[%emt 0:00:30]} 18. Qc2 {[%emt 0:00:30]} d5 {[%emt 0:00:30]} 19. cxd5 {[%emt 0:00:30]} Bf5 {[%emt 0:00:30]} 20. f3 {[%emt 0:00:30]} exf3 {[%emt 0:00:30]} 21. Nxf3 {[%emt 0:00:30]} Bg6 {[%emt 0:00:30]} 22. Qd2 {[%emt 0:00:30]} Nxd5 {[%emt 0:00:30]} 23. Nh4 {[%emt 0:00:30]} Nxc1 {[%emt 0:00:30]} 24. Nxg6 {[%emt 0:00:30]} hxg6 {[%emt 0:00:30]} 25. e4 {[%emt 0:00:30]} Ne2+ {[%emt 0:00:30]} 26. Qxe2 {[%emt 0:00:30]} Nc3 {[%emt 0:00:30]} 27. Qf2 {[%emt 0:00:30]} Qxd4 {[%emt 0:00:30]} 28. Qxd4 {[%emt 0:00:30]} Ne2+ {[%emt 0:00:30]} 29. Kh2 {[%emt 0:00:30]} Nxd4 {[%emt 0:00:30]} 30. Rbd1 {[%emt 0:00:30]} Ne6 {[%emt 0:00:30]} 31. e5 {[%emt 0:00:30]} Re7 {[%emt 0:00:30]} 32. Bxb7 {[%emt 0:00:30]} Rxa3 {[%emt 0:00:30]} 33. Bd5 {[%emt 0:00:30]} Ra2+ {[%emt 0:00:30]} 34. Kh1 {[%emt 0:00:30]} Re2 {[%emt 0:00:30]} 35. Bxe6 {[%emt 0:00:30]} fxe6 {[%emt 0:00:30]} 36. Rd8+ {[%emt 0:00:30]} Kh7 {[%emt 0:00:30]} 37. h4 {[%emt 0:00:30]} g5 {[%emt 0:00:30]} 38. h5 {[%emt 0:00:30]} g6 {[%emt 0:00:30]} 39. g4 {[%emt 0:00:30]} gxh5 {[%emt 0:00:30]} 40. gxh5 {[%emt 0:00:30]} g4 {[%emt 0:00:30]} 41. Rff8 {[%emt 0:00:30]} Kh6 {[%emt 0:00:30]} 42. Rf6+ {[%emt 0:00:30]} Kxh5 {[%emt 0:00:30]} 43. Rh8+ Kg5 {[%emt 0:00:30]} 44. Rg8+ {[%emt 0:01:00]} Kh4 {[%emt 0:00:30]} 45. Rf4 {[%emt 0:00:30]} Kh3 {[%emt 0:00:30]} 46. Rfxg4 {[%emt 0:00:30]} Re1+ {[%emt 0:00:30]} 47. Rg1 {[%emt 0:00:30]} Rxg1+ {[%emt 0:00:30]} 48. Kxg1 {[%emt 0:00:30]} Rd7 {[%emt 0:00:30]} 49. Rg6 {[%emt 0:00:30]} Rd3 {[%emt 0:00:30]} 50. Rxe6 {[%emt 0:00:30]} Kg3 {[%emt 0:00:30]} 51. Rg6+ {[%emt 0:00:30]} Kf3 {[%emt 0:00:30]} 52. Rc6 Rxb3 {[%emt 0:00:30]} 53. Rxc7 {[%emt 0:01:00]} Re3 54. Rc5 {[%emt 0:00:30]} b4 {[%emt 0:01:00]} 55. Rb5 {[%emt 0:00:30]} b3 {[%emt 0:00:30]} 56. e6 {[%emt 0:00:30]} Kg3 {[%emt 0:00:30]} 57. Kf1 {[%emt 0:00:30]} 1/2-1/2

[Event "53rd Indian Junior Open-ch 2024"]
[Site "Karnal"]
[Date "2024.09.21"]
[Round "8.2"]
[White "Manish Anto Cristiano F"]
[Black "Madhvendra Pratap Sharma"]
[Result "1/2-1/2"]
[ECO "D34"]
[WhiteElo "2364"]
[BlackElo "2061"]
[Annotator "TA"]
[PlyCount "167"]
[EventDate "2024.09.16"]
[EventType "swiss"]
[EventCountry "IND"]
[SourceTitle "playchess.com"]
[Source "ChessBase"]
[SourceQuality "1"]
[TimeControl "5400+30"]

{[%evp 21,166,25,23,12,37,10,63,50,48,38,61,53,60,34,39,57,69,57,72,66,66,64,60,62,59,63,68,65,67,60,66,43,118,101,120,120,110,122,123,116,121,120,127,101,104,100,97,99,100,106,108,108,104,86,108,97,108,108,108,86,115,93,92,100,100,93,93,93,93,93,93,93,93,93,93,93,93,93,93,93,93,93,101,93,101,93,101,101,101,101,101,101,101,29,37,26,26,26,26,26,26,26,26,26,26,26,26,26,26,26,26,8,8,8,8,8,8,8,8,0,8,8,8,8,8,8,8,8,8,8,8,0,0,0,0,0,0,0,0,0,0,0,0,0,0,0,0]} 1. Nf3 {[%emt 0:00:07]} d5 {[%emt 0:00:20]} 2. g3 {[%emt 0:00:43]} c5 {[%emt 0:00:34]} 3. c4 {[%emt 0:00:33]} e6 {[%emt 0:00:10]} 4. cxd5 {[%emt 0:00:25]} exd5 {[%emt 0:00:13]} 5. d4 {[%emt 0:00:07]} Nc6 {[%emt 0:00:30]} 6. Nc3 {[%emt 0:00:16]} Nf6 {[%emt 0:00:07]} 7. Bg2 {[%emt 0:00:06]} Be7 {[%emt 0:00:13]} 8. O-O {[%emt 0:00:33]} O-O {[%emt 0:00:10]} 9. dxc5 {[%emt 0:00:45]} Bxc5 {[%emt 0:00:12]} 10. Na4 {[%emt 0:00:09]} Be7 {[%emt 0:00:06]} 11. Be3 {[%emt 0:00:36]} Bg4 {[%emt 0:00:32][%cal Bc8g4,Bg4h5,Bh5g6][%mdl 32]} 12. h3 {[%emt 0:01:04]} Bh5 {[%emt 0:00:15]} 13. Nd4 {[%emt 0:01:46]} Qa5 {[%emt 0:12:53]} (13... Re8 $11) 14. Nc3 $14 {[%emt 0:06:56] White is slightly better.} Rad8 {[%emt 0:08:04][%cal Of6e4]} 15. a3 {[%emt 0:01:46]} Qa6 {[%emt 0:07:09][%cal Of6e4]} 16. Re1 {[%emt 0:10:54]} Bg6 {[%emt 0:03:56]} 17. Qa4 {[%emt 0:08:53]} Qxa4 {[%emt 0:05:15]} 18. Nxa4 {[%emt 0:00:07]} Na5 {[%emt 0:04:12]} 19. Bd2 {[%emt 0:03:47]} Nc4 {[%emt 0:03:44]} 20. Bb4 {[%emt 0:00:21]} Rfe8 {[%emt 0:01:44]} 21. Bxe7 {[%emt 0:02:40]} Rxe7 {[%emt 0:00:02]} 22. Rec1 {[%emt 0:02:00]} Be4 {[%emt 0:03:26]} 23. b3 {[%emt 0:02:50]} Bxg2 {[%emt 0:01:31]} 24. Kxg2 {[%emt 0:00:19]} Nd6 {[%emt 0:00:28]} 25. e3 {[%emt 0:03:38]} Nfe8 {[%emt 0:07:13]} 26. Rc5 {[%emt 0:03:44] White is more active.} b6 {[%emt 0:10:39]} (26... Ne4 $14) 27. Rxd5 $16 {[%emt 0:01:22] And now Nc6 would win.} Nf6 {[%emt 0:01:23] [#]} 28. Rxd6 {[%emt 0:01:22][%mdl 512]} Rxd6 {[%emt 0:00:06]} 29. Nf5 $1 {[%emt 0:00:03][%csl LRd6,LRe7]} Red7 {[%emt 0:00:09]} 30. Nxd6 {[%emt 0:00:12]} Rxd6 {[%emt 0:00:01][%mdl 4096] Endgame. KRN-KRN} 31. Rc1 {[%emt 0:00:24] White threatens Rc8+ and mate.} g6 {[%emt 0:00:29]} 32. Rc7 {[%emt 0:04:43]} Ne4 {[%emt 0:06:14]} 33. Nc3 {[%emt 0:01:45]} ({Much worse is} 33. Rxa7 $6 b5 $11) 33... Nxc3 {[%emt 0:01:38]} 34. Rxc3 {[%emt 0:00:10] KR-KR} Rd2 {[%emt 0:01:08]} 35. Rc7 {[%emt 0:02:42]} Rd3 {[%emt 0:00:43]} 36. Rxa7 {[%emt 0:01:58]} Rxb3 {[%emt 0:00:02]} 37. g4 {[%emt 0:00:09]} h6 {[%emt 0:02:44]} 38. Kf3 {[%emt 0:03:24]} Rb2 {[%emt 0:01:33]} 39. Ra4 {[%emt 0:00:22]} Rb3 {[%emt 0:02:00]} 40. Ke4 {[%emt 0:01:33]} b5 {[%emt 0:00:43]} 41. Ra5 {[%emt 0:03:24]} Kg7 {[%emt 0:02:33]} 42. h4 {[%emt 0:04:39]} Rc3 {[%emt 0:06:06]} 43. f4 {[%emt 0:04:55][%cal Oe4d4]} b4 {[%emt 0:03:07]} 44. axb4 {[%emt 0:02:11]} Rc4+ {[%emt 0:00:01]} 45. Kf3 {[%emt 0:00:09]} Rxb4 {[%emt 0:00:04]} 46. h5 {[%emt 0:00:21]} gxh5 {[%emt 0:01:49]} 47. Rxh5 {[%emt 0:00:07]} Kg6 {[%emt 0:01:19]} 48. Ra5 {[%emt 0:01:27]} Kg7 {[%emt 0:01:16]} 49. Ra3 {[%emt 0:02:07]} Kg6 {[%emt 0:01:09]} 50. Ra6+ {[%emt 0:00:23]} Kg7 {[%emt 0:00:08]} 51. Ra5 {[%emt 0:00:04]} Kg6 {[%emt 0:01:05]} 52. Ra3 {[%emt 0:00:06]} Rb1 {[%emt 0:01:38]} 53. Ra6+ {[%emt 0:00:16]} Kg7 {[%emt 0:00:46]} 54. Rd6 {[%emt 0:00:11]} Rb4 {[%emt 0:00:30]} 55. Rd4 {[%emt 0:01:21]} Rb6 {[%emt 0:00:15]} 56. Rd3 {[%emt 0:00:29]} Kg6 {[%emt 0:00:35]} 57. e4 {[%emt 0:00:27]} (57. Rd1 $16) 57... f6 $1 $11 {[%emt 0:01:17]} 58. Rd7 {[%emt 0:01:28] [#] Threatens to win with f5+.} Rb3+ {[%emt 0:01:43]} 59. Kf2 {[%emt 0:00:06]} h5 {[%emt 0:01:21]} 60. gxh5+ {[%emt 0:00:41]} Kxh5 {[%emt 0:00:08]} 61. Rg7 {[%emt 0:00:04]} Kh6 {[%emt 0:00:45]} 62. Rg3 {[%emt 0:00:10]} Rb2+ {[%emt 0:00:22]} 63. Kf3 {[%emt 0:00:07]} Rb3+ {[%emt 0:00:06]} 64. Kg4 {[%emt 0:00:59]} Rb5 {[%emt 0:00:05]} 65. Rd3 {[%emt 0:01:05] Rd5 would now be deadly.} Kg6 {[%emt 0:01:45]} 66. Rd7 {[%emt 0:00:18]} f5+ {[%emt 0:00:10] The position is equal.} 67. exf5+ {[%emt 0:00:43]} Rxf5 {[%emt 0:00:19]} 68. Rd6+ {[%emt 0:00:12]} Rf6 {[%emt 0:00:09]} 69. f5+ {[%emt 0:00:08]} Kg7 {[%emt 0:00:20]} 70. Rd7+ {[%emt 0:00:05]} Kf8 {[%emt 0:00:48]} 71. Kg5 {[%emt 0:00:44]} Ra6 {[%emt 0:00:08]} 72. Rb7 {[%emt 0:00:22]} Kg8 {[%emt 0:00:39]} 73. Rb8+ {[%emt 0:02:16]} Kg7 {[%emt 0:00:50]} 74. Rb1 {[%emt 0:00:27]} Kf7 {[%emt 0:00:30]} 75. Rc1 {[%emt 0:00:37]} Kg7 {[%emt 0:00:22]} 76. Rh1 {[%emt 0:00:18]} Ra2 {[%emt 0:01:12]} 77. f6+ {[%emt 0:00:11]} Kf8 {[%emt 0:00:22]} 78. Rh4 {[%emt 0:07:23]} Rg2+ {[%emt 0:00:19]} 79. Rg4 {[%emt 0:00:05]} Rxg4+ {[%emt 0:00:09]} 80. Kxg4 {[%emt 0:00:04]} Kf7 {[%emt 0:00:05]} 81. Kf5 {[%emt 0:00:06]} Kf8 {[%emt 0:00:14]} 82. Ke6 {[%emt 0:00:07] f7 would kill now.} (82. Kg6 $5 Kg8 $8 83. Kh5 $11) 82... Ke8 {[%emt 0:00:06]} 83. f7+ {[%emt 0:00:04]} Kf8 {[%emt 0:00:02]} 84. Kf6 {[%emt 0:00:05] Weighted Error Value: White=0.08 (flawless) /Black=0.09 (flawless) .  Mistake:       	White=1     	Black=2      Inaccurate:     	White=2     	Black=1      OK:         	White=28    	Black=24     Best:        	White=2     	Black=8      Strong:       	---       	Black=1} 1/2-1/2

[Event "53rd Indian Junior Open-ch 2024"]
[Site "Karnal"]
[Date "2024.09.21"]
[Round "8.3"]
[White "Mukund Hemant Agarwal"]
[Black "Bhattacharyya Soham"]
[Result "*"]
[ECO "B12"]
[WhiteElo "2073"]
[BlackElo "2425"]
[Annotator "TA"]
[PlyCount "63"]
[EventDate "2024.09.16"]
[EventType "swiss"]
[EventCountry "IND"]
[SourceTitle "playchess.com"]
[Source "ChessBase"]
[SourceQuality "1"]
[TimeControl "5400+30"]

{[%evp 10,63,22,20,50,37,39,-18,29,0,0,0,0,0,0,0,204,187,172,199,310,324,349,343,352,339,327,236,228,183,263,264,253,223,234,232,222,41,37,60,67,66,136,33,30,0,152,12,241,-8,-30,-31,0,0,0,0]} 1. e4 {[%emt 0:00:02]} c6 {[%emt 0:00:52]} 2. d4 {[%emt 0:00:20]} d5 {[%emt 0:00:03]} 3. e5 {[%emt 0:00:04]} Bf5 {[%emt 0:00:07]} 4. Nf3 {[%emt 0:00:09]} e6 {[%emt 0:00:06]} 5. Be2 {[%emt 0:00:04]} Nd7 {[%emt 0:00:08]} 6. O-O {[%emt 0:00:23]} a5 {[%emt 0:01:31]} 7. a4 {[%emt 0:05:42]} f6 {[%emt 0:01:33][%cal Bf7f6,Bf6e5][%mdl 32]} 8. Nh4 {[%emt 0:27:00]} (8. Bd3 $14) 8... Be4 {[%emt 0:30:59]} (8... fxe5 {was preferrable.} 9. Nxf5 exf5) 9. f3 {[%emt 0:03:15]} fxe5 {[%emt 0:00:37] aiming for ...Bxc2.} 10. fxe4 {[%emt 0:13:09]} Qxh4 {[%emt 0:00:06]} 11. Nd2 {[%emt 0:01:58][%cal Bb1d2,Bd2f3,Bf3e5,Be5f7,Bf7h8][%mdl 32]} Bd6 {[%emt 0:11:06]} 12. Nf3 {[%emt 0:05:42]} Qxe4 {[%emt 0:16:36]} (12... Qe7 $1 $11) 13. h3 $1 $36 {[%emt 0:02:30][%mdl 2048] Strongly threatening Bd3. White has strong initiative.} Qg6 {[%emt 0:07:13] Threatens to win with ...Ngf6.} 14. Nxe5 $1 {[%emt 0:02:32]} Qg3 {[%emt 0:00:07]} (14... Nxe5 $2 {too greedy.} 15. Bh5 O-O-O 16. Bxg6 Nxg6 17. Qe1 $18) (14... Bxe5 $142 15. Bh5 (15. dxe5 Qe4 $16) 15... Bxd4+ 16. Kh1 e5 17. Bxg6+ hxg6) 15. Rf3 {[%emt 0:14:33]} Qh4 {[%emt 0:00:07]} 16. Nf7 {[%emt 0:00:14]} Qe7 {[%emt 0:01:03]} 17. Nxh8 {[%emt 0:00:15]} Ngf6 {[%emt 0:00:14]} 18. c4 {[%emt 0:04:13][%cal Bc2c4,Bc4c5][%mdl 32]} O-O-O {[%emt 0:02:50]} 19. c5 {[%emt 0:00:45]} Bc7 {[%emt 0:02:39] [#]} (19... Bb8 $142 20. b4 Rxh8 21. bxa5 e5) 20. b4 $1 {[%emt 0:00:24][%cal Ob4a5] bxa5! would now be deadly.} e5 {[%emt 0:03:04] [#]} 21. b5 $1 {[%emt 0:05:24]} Rxh8 {[%emt 0:00:25]} 22. bxc6 {[%emt 0:04:19]} bxc6 {[%emt 0:00:01] [#]} 23. Be3 {[%emt 0:05:29]} (23. Qd3 $1 $18 {[%cal Rd3a6]} Nb8 24. Re3) 23... Kd8 {[%emt 0:05:34]} 24. Rc1 {[%emt 0:01:27]} Re8 {[%emt 0:03:02]} 25. Ba6 $1 {[%emt 0:01:00]} Nb8 {[%emt 0:01:44]} (25... exd4 $14 26. Bxd4 Ne4) 26. Bf1 {[%emt 0:00:50]} (26. dxe5 $16 Qxe5 27. Bf4) 26... Nbd7 $14 {[%emt 0:00:37]} 27. Qb3 {[%emt 0:01:21] Black must now prevent Qb7.} Qe6 $2 {[%emt 0:11:36]} (27... exd4 $1 $11 28. Bxd4 Ne4) 28. Qb1 {[%emt 0:00:25] White is more active.} (28. Qb7 $16) 28... Ke7 $2 {[%emt 0:02:41] [#]} (28... exd4 $1 $11 {and Black stays safe.} 29. Bxd4 Qe4) 29. Qf5 $2 {[%emt 0:00:33]} (29. Qb7 $1 $18 {[%cal Rb7c7]} Bb8 30. Qa6) 29... Qxf5 $11 {[%emt 0:01:25]} 30. Rxf5 {[%emt 0:00:01]} Ke6 {[%emt 0:00:10]} 31. Rf2 {[%emt 0:01:57]} Rb8 {[%emt 0:00:01]} 32. Bd3 {[%emt 0:00:41] White really could win this.   Weighted Error Value: White=0.40/Black=0.42.  Loses game:     	---       	Black=2      Missed win:     	White=2     	---        Mistake:       	White=3     	Black=5      Inaccurate:     	White=2     	Black=1      OK:         	White=9     	Black=11     Best:        	White=1     	Black=2      Strong:       	White=3     	---        Brilliant:      	White=1     	---} *